Workbook

Sheet Forklaring
A2: Kalkulatus for Skov-entreprenører
B4: Denne regneprogram giver mulighed for at beregne maskinomkostninger udfra egne forudsætninger.
B5: Dermed kan bruges både for brugte og nye maskiner.
B7: Traktor
B8: I denne fane kan man beregne egne omkostninger til traktor.
B9: I de fremhævede felter kan man indtaste egne tal og forudsætninger. Der er forklaring ved de enkelte felter
B11: Traktor + redskab
B12: I denne fane kan man beregne egne omkostninger for traktortrukne redskaber.
B13: I de fremhævede felter kan man indtaste egne tal og forudsætninger. Der er forklaring ved de enkelte felter
B14: Bemærk, at traktor indgår som en timeomkostning.
B15: Selvkørende maskiner
B16: I denne fane kan man beregne egne omkostninger for selvkørende maskiner.
B17: I de fremhævede felter kan man indtaste egne tal og forudsætninger. Der er forklaring ved de enkelte felter
B19: Gns. Traktoromk.
B20: I denne fane er vist data fra 404 traktorer opdelt i 6 grupper efter motoreffekt.
B21: Data er beregnet som gennemsnit ift. kørte timer for et helt år.
B22: Gns. Årlige traktortimer
B23: I denne fane er vist de gennemsnitlige kørte traktortimer for de 6 opdelte grupper efter motoreffekt.
B24: Kørte traktortimer er timer, hvor traktoren har kørt på opgaver og transport. Derved kan der forskel ift. traktormetertimer,
B25: hvor alle motortimer registreres.
B28: Vh.
B29: Torben Madsen
B30: Driftsøkonom, DM&E

Sheet Traktor alene
C2: Kalkulatus 2023 | G2: Maskinkalkulation
C3: Maskintype | D3: Traktor 350 hk
C5: Købspris | D5: 1600000 | E5: kr | G5: Omkostninger - Salgspriser
C6: Periode | D6: 8 | E6: år | G6: 200 | H6: (interval i skema)
C7: Kalkulationsrente | D7: 4 | E7: % | G7: eff.timer/ | H7: kr/ | I7: kr/ | J7: kr/ | K7: kr/
C8: Værditab | D8: 14 | E8: %p.a | G8: år | H8: eff.time | I8: eff.time | J8: eff.time | K8: eff.time
C9: Gns. Årligt værditab | D9: =+(D5-D10)/D6 -> 140156.4146 | E9: kr | H9: i alt | I9: excl.diesel | J9: excl.løn | K9: excl.løn
C10: Restværdi | D10: =((1-D8/100)^D6)*D5 -> 478748.6834 | E10: kr | I10: incl. løn | J10: incl.diesel | K10: excl.diesel
C11: Værditab+forrentn. | D11: =((1-(1-$D$8/100)^$D$6)*($D$7/(1-((1+$D$7/100)^(-$D$6))))+(100*(1-$D$8/100)^$D$6)*($D$7/100))*(D5/100) -> 185686.9746 | E11: kr/år | G11: 600 | H11: =($D$16/G11+$D$28)*(1+($J$17/100)) -> 776.6866243 | I11: =($D$16/G11+($D$28-$D$27))*(1+($J$17/100)) -> 696.6866243 | J11: =($D$16/G11+$D$29)*(1+($J$17/100)) -> 472.8116243 | K11: =($D$16/G11+($D$28-$D$23-$D$27))*(1+($J$17/100)) -> 392.8116243
C12: Kapitalomkostninger | D12: =+D11/D5*100 -> 11.60543591 | E12: % | G12: =+$G$6+G11 -> 800 | H12: =($D$16/G12+$D$28)*(1+($J$17/100)) -> 690.9837182 | I12: =($D$16/G12+($D$28-$D$27))*(1+($J$17/100)) -> 610.9837182 | J12: =($D$16/G12+$D$29)*(1+($J$17/100)) -> 387.1087182 | K12: =($D$16/G12+($D$28-$D$23-$D$27))*(1+($J$17/100)) -> 307.1087182
C13: Husleje | D13: 0 | E13: kr/år | G13: =+$G$6+G12 -> 1000 | H13: =($D$16/G13+$D$28)*(1+($J$17/100)) -> 639.5619746 | I13: =($D$16/G13+($D$28-$D$27))*(1+($J$17/100)) -> 559.5619746 | J13: =($D$16/G13+$D$29)*(1+($J$17/100)) -> 335.6869746 | K13: =($D$16/G13+($D$28-$D$23-$D$27))*(1+($J$17/100)) -> 255.6869746
C14: Forsikring | D14: 20000 | E14: kr/år | G14: =+$G$6+G13 -> 1200 | H14: =($D$16/G14+$D$28)*(1+($J$17/100)) -> 605.2808121 | I14: =($D$16/G14+($D$28-$D$27))*(1+($J$17/100)) -> 525.2808121 | J14: =($D$16/G14+$D$29)*(1+($J$17/100)) -> 301.4058121 | K14: =($D$16/G14+($D$28-$D$23-$D$27))*(1+($J$17/100)) -> 221.4058121
C15: Vægtafgift | D15: 0 | E15: kr/år | G15: =+$G$6+G14 -> 1400 | H15: =($D$16/G15+$D$28)*(1+($J$17/100)) -> 580.7942676 | I15: =($D$16/G15+($D$28-$D$27))*(1+($J$17/100)) -> 500.7942676 | J15: =($D$16/G15+$D$29)*(1+($J$17/100)) -> 276.9192676 | K15: =($D$16/G15+($D$28-$D$23-$D$27))*(1+($J$17/100)) -> 196.9192676
C16: Faste omkostninger | D16: =$D$11+D13+D14+$D$15 -> 205686.9746 | E16: kr/år
C19: Løn til medarbejder | D19: 170 | E19: kr/time
C20: Sociale omk | D20: 43 | E20: %
C21: Lønomkostning | D21: =+D19*(1+D20/100) -> 243.1 | E21: kr/time
C22: Effektivitet | D22: 80 | E22: %
C23: Lønomkostning | D23: =+D21/(D22/100) -> 303.875 | E23: kr/eff.time | FT23: timer/år | FU23: =G13 -> 1000 | FV23: =FU23 -> 1000 | FW23: =FU23 -> 1000 | FX23: =FU23 -> 1000 | FY23: =FU23 -> 1000 | FZ23: =FU23 -> 1000 | GA23: =FU23 -> 1000 | GB23: =FU23 -> 1000 | GC23: =FV23 -> 1000 | GD23: =FW23 -> 1000 | GE23: =FX23 -> 1000 | GF23: =FY23 -> 1000 | GG23: 700 | GH23: =SUM(FU23:GB23) -> 8000
C24: Rep/vedligeh. | D24: 50 | E24: kr/time | FU24: år
C25: Brændstofforbrug | D25: 20 | E25: liter/eff.time | FT25: faste omkostninger | FU25: 1 | FV25: 2 | FW25: 3 | FX25: 4 | FY25: 5 | FZ25: 6 | GA25: 7 | GB25: 8 | GC25: 9 | GD25: 10 | GE25: 11 | GF25: 12 | GG25: GNS.
C26: Brændstofpris | D26: 4 | E26: kr/liter | FT26: primoværdi | FU26: =$D$5*(100-$D$8)/100 -> 1376000 | FV26: =FU26*(100-$D$8)/100 -> 1183360 | FW26: =FV26*(100-$D$8)/100 -> 1017689.6 | FX26: 875213.056 | FY26: 752683.2282 | FZ26: 647307.5762 | GA26: 556684.5155 | GB26: 478748.6834 | GC26: 411723.8677 | GD26: 354082.5262 | GE26: 304510.9725 | GF26: 261879.4364
C27: Brændstof | D27: =+D25*D26 -> 80 | E27: kr/eff.time | FT27: afskriv | FU27: =D5-FU26 -> 224000 | FV27: =FU26-FV26 -> 192640 | FW27: =FV26-FW26 -> 165670.4 | FX27: 142476.544 | FY27: 122529.8278 | FZ27: 105375.6519 | GA27: 90623.06067 | GB27: 77935.83218 | GC27: 67024.81567 | GD27: 57641.34148 | GE27: 49571.55367 | GF27: 42631.53616 | GH27: =SUM(FU27:GB27) -> 1121251.317
C28: Driftsomk.ialt | D28: =$D$24+$D$27+$D$23 -> 433.875 | E28: kr/eff.time | FT28: Forrentning | FU28: =D5*(($D$7/100))*(1+R7/100) -> 64000 | FV28: =FU26*(($D$7/100))*(1+R7/100) -> 55040 | FW28: =FV26*(($D$7/100))*(1+R7/100) -> 47334.4 | FX28: =FW26*(($D$7/100))*(1+R7/100) -> 40707.584 | FY28: =FX26*(($D$7/100))*(1+R7/100) -> 35008.52224 | FZ28: =FY26*(($D$7/100))*(1+R7/100) -> 30107.32913 | GA28: =FZ26*(($D$7/100))*(1+R7/100) -> 25892.30305 | GB28: =GA26*(($D$7/100))*(1+R7/100) -> 22267.38062 | GC28: =GB26*(($D$7/100))*(1+S7/100) -> 19149.94733 | GD28: =GC26*(($D$7/100))*(1+T7/100) -> 16468.95471 | GE28: =GD26*(($D$7/100))*(1+U7/100) -> 14163.30105 | GF28: =GE26*(($D$7/100))*(1+V7/100) -> 12180.4389 | GH28: =SUM(FU28:GB28) -> 320357.519
C29: Driftsomk. Ex løn | D29: =+D28-D23 -> 130 | E29: kr/eff.time | FT29: Faste omk pr. time | FU29: =(FU28+FU27)/FU23 -> 288 | FV29: =(FV28+FV27)/FV23 -> 247.68 | FW29: 213.0048 | FX29: 183.184128 | FY29: 157.5383501 | FZ29: 135.4829811 | GA29: 116.5153637 | GB29: 100.2032128 | GC29: 86.17476301 | GD29: 74.11029619 | GE29: 63.73485472 | GF29: 54.81197506
G30: Kommentar | FT30: Husleje+forsikring+vægtafgift | FU30: =$D$15+$D$14+$D$13 -> 20000 | FV30: =$D$15+$D$14+$D$13 -> 20000 | FW30: 20000 | FX30: 20000 | FY30: 20000 | FZ30: 20000 | GA30: 20000 | GB30: 20000 | GC30: 20000 | GD30: 20000 | GE30: 20000 | GF30: 20000 | GG30: 20000 | GH30: =SUM(FU30:GB30) -> 160000
C31: Omkostninger på årsbasis. | E31: Kr./time | FT31: Variable omk.
C32: Forrentning+afskrivning | D32: =D11 -> 185686.9746 | E32: =D32/G13 -> 185.6869746 | FT32: År | FU32: =FU25 -> 1 | FV32: =FV25 -> 2 | FW32: 3 | FX32: 4 | FY32: 5 | FZ32: 6 | GA32: 7 | GB32: 8 | GC32: 9 | GD32: 10 | GE32: 11 | GF32: 12 | GG32: GNS.
C33: Forsikring/vægtafgift/oa. | D33: =D15+D14+D13 -> 20000 | E33: =D33/G13 -> 20 | FT33: Husleje+forsikring+vægtafgift | FU33: =FU30/FU23 -> 20 | FV33: =FV30/FV23 -> 20 | FW33: 20 | FX33: 20 | FY33: 20 | FZ33: 20 | GA33: 20 | GB33: 20 | GC33: 20 | GD33: 20 | GE33: 20 | GF33: 20 | GG33: 28.57142857
C34: Løn | D34: =D23*G13 -> 303875 | E34: =D34/G13 -> 303.875 | FT34: Rep./vedligehold | FU34: =$D$24 -> 50 | FV34: =$D$24 -> 50 | FW34: 50 | FX34: 50 | FY34: 50 | FZ34: 50 | GA34: 50 | GB34: 50 | GC34: 50 | GD34: 50 | GE34: 50 | GF34: 50 | GG34: 50
C35: Rep/vedligeholdelse | D35: =D24*G13 -> 50000 | E35: =D35/G13 -> 50 | FT35: Arbejdsløn | FU35: =$D$23 -> 303.875 | FV35: =$D$23 -> 303.875 | FW35: 303.875 | FX35: 303.875 | FY35: 303.875 | FZ35: 303.875 | GA35: 303.875 | GB35: 303.875 | GC35: 303.875 | GD35: 303.875 | GE35: 303.875 | GF35: 303.875 | GG35: 303.875
C36: Brændstof | D36: =D27*G13 -> 80000 | E36: =D36/G13 -> 80 | FT36: Brændstof | FU36: =$D$27 -> 80 | FV36: =$D$27 -> 80 | FW36: 80 | FX36: 80 | FY36: 80 | FZ36: 80 | GA36: 80 | GB36: 80 | GC36: 80 | GD36: 80 | GE36: 80 | GF36: 80 | GG36: 80
C37: Total omk. | D37: =SUM(D32:D36) -> 639561.9746 | E37: =D37/G13 -> 639.5619746 | FT37: Afskriv/forrent | FU37: =(FU28+FU27)/FU23 -> 288 | FV37: 247.68 | FW37: 213.0048 | FX37: 183.184128 | FY37: 157.5383501 | FZ37: 135.4829811 | GA37: 116.5153637 | GB37: 100.2032128 | GC37: 86.17476301 | GD37: 74.11029619 | GE37: 63.73485472 | GF37: 54.81197506 | GG37: =G35 -> 0
FT38: Administration | FU38: =SUM(FU33:FU37)*$J$17/100 -> 0 | FV38: =SUM(FV33:FV37)*$J$17/100 -> 0 | FW38: 0 | FX38: 0 | FY38: 0 | FZ38: 0 | GA38: 0 | GB38: 0 | GC38: 0 | GD38: 0 | GE38: 0 | GF38: 0 | GG38: 0
FU39: =SUM(FU33:FU38) -> 741.875 | FV39: 701.555 | FW39: 666.8798 | FX39: 637.059128 | FY39: 611.4133501 | FZ39: 589.3579811 | GA39: 570.3903637 | GB39: 554.0782128 | GC39: 540.049763 | GD39: 527.9852962 | GE39: 517.6098547 | GF39: 508.6869751 | GG39: 462.4464286
FM41: Gns. kostpris for perioden | FN41: =H13 -> 639.5619746 | FO41: =FN41 -> 639.5619746 | FP41: =FO41 -> 639.5619746 | FQ41: 639.5619746 | FR41: 639.5619746 | FS41: 639.5619746 | FT41: 639.5619746 | FU41: 639.5619746
FA45: År | FB45: Husleje+forsikring+vægtafgift | FC45: Rep./vedligehold | FD45: Arbejdsløn | FE45: Brændstof | FF45: Afskriv/forrent | FG45: Administration | FH45: Gns. kostpris for perioden | FI45: kostpris | FM45: primoværdi | FN45: afskriv | FO45: Forrentning | FP45: Faste omk pr. time
FA46: 1 | FB46: =IF(FA46="","",($D$13+$D$14+$D$15)/$G$13) -> 20 | FC46: =IF(FA46="","",$D$24) -> 50 | FD46: =IF(FA46="","",$D$23) -> 303.875 | FE46: =IF(FA46="","",$D$27) -> 80 | FF46: =IF(FA46="","",FP46) -> 288 | FG46: =IF(FA46="","",SUM(FB46:FF46)*$J$17/100) -> 0 | FH46: =IF(FA46="","",$FO$41) -> 639.5619746 | FI46: =SUM(FB46:FG46) -> 741.875 | FM46: =$D$5*(100-$D$8)/100 -> 1376000 | FN46: =D5-FM46 -> 224000 | FO46: =D5*(($D$7/100)) -> 64000 | FP46: =(FO46+FN46)/$G$13 -> 288
FA47: =IF(OR(FA46>=$D$6,FA46=""),"",+FA46+1) -> 2 | FB47: 20 | FC47: 50 | FD47: 303.875 | FE47: =IF(FA47="","",$D$27) -> 80 | FF47: 247.68 | FG47: =IF(FA47="","",SUM(FB47:FF47)*$J$17/100) -> 0 | FH47: =IF(FA47="","",$FO$41) -> 639.5619746 | FI47: 701.555 | FM47: =FM46*(100-$D$8)/100 -> 1183360 | FN47: =FM46-FM47 -> 192640 | FO47: =FM46*(($D$7/100)) -> 55040 | FP47: 247.68 | FQ47: =FP46/FP47*100 -> 116.2790698
FA48: =IF(OR(FA47>=$D$6,FA47=""),"",+FA47+1) -> 3 | FB48: 20 | FC48: 50 | FD48: 303.875 | FE48: 80 | FF48: 213.0048 | FG48: 0 | FH48: 639.5619746 | FI48: 666.8798 | FM48: 1017689.6 | FN48: 165670.4 | FO48: 47334.4 | FP48: 213.0048 | FQ48: 116.2790698
FA49: 4 | FB49: 20 | FC49: 50 | FD49: 303.875 | FE49: 80 | FF49: 183.184128 | FG49: 0 | FH49: 639.5619746 | FI49: 637.059128 | FM49: 875213.056 | FN49: 142476.544 | FO49: 40707.584 | FP49: 183.184128 | FQ49: 116.2790698
FA50: 5 | FB50: 20 | FC50: 50 | FD50: 303.875 | FE50: 80 | FF50: 157.5383501 | FG50: 0 | FH50: 639.5619746 | FI50: 611.4133501 | FM50: 752683.2282 | FN50: 122529.8278 | FO50: 35008.52224 | FP50: 157.5383501 | FQ50: 116.2790698
FA51: 6 | FB51: 20 | FC51: 50 | FD51: 303.875 | FE51: 80 | FF51: 135.4829811 | FG51: 0 | FH51: 639.5619746 | FI51: 589.3579811 | FM51: 647307.5762 | FN51: 105375.6519 | FO51: 30107.32913 | FP51: 135.4829811 | FQ51: 116.2790698
FA52: 7 | FB52: 20 | FC52: 50 | FD52: 303.875 | FE52: 80 | FF52: 116.5153637 | FG52: 0 | FH52: 639.5619746 | FI52: 570.3903637 | FM52: 556684.5155 | FN52: 90623.06067 | FO52: 25892.30305 | FP52: 116.5153637 | FQ52: 116.2790698
FA53: 8 | FB53: 20 | FC53: 50 | FD53: 303.875 | FE53: 80 | FF53: 100.2032128 | FG53: 0 | FH53: 639.5619746 | FI53: 554.0782128 | FM53: 478748.6834 | FN53: 77935.83218 | FO53: 22267.38062 | FP53: 100.2032128 | FQ53: 116.2790698
FB54: =IF(FA54="","",($D$13+$D$14+$D$15)/$G$13) ->  | FC54: =IF(FA54="","",$D$24) ->  | FD54: =IF(FA54="","",$D$23) ->  | FI54: 0 | FM54: 411723.8677 | FN54: 67024.81567 | FO54: 19149.94733 | FP54: 86.17476301 | FQ54: 116.2790698
FB55: =IF(FA55="","",($D$13+$D$14+$D$15)/$G$13) ->  | FC55: =IF(FA55="","",$D$24) ->  | FD55: =IF(FA55="","",$D$23) ->  | FI55: 0 | FM55: 354082.5262 | FN55: 57641.34148 | FO55: 16468.95471 | FP55: 74.11029619 | FQ55: 116.2790698
FB56: =IF(FA56="","",($D$13+$D$14+$D$15)/$G$13) ->  | FC56: =IF(FA56="","",$D$24) ->  | FD56: =IF(FA56="","",$D$23) ->  | FI56: 0 | FM56: 304510.9725 | FN56: 49571.55367 | FO56: 14163.30105 | FP56: 63.73485472 | FQ56: 116.2790698
FB57: =IF(FA57="","",($D$13+$D$14+$D$15)/$G$13) ->  | FC57: =IF(FA57="","",$D$24) ->  | FD57: =IF(FA57="","",$D$23) ->  | FI57: 0 | FM57: 261879.4364 | FN57: 42631.53616 | FO57: 12180.4389 | FP57: 54.81197506 | FQ57: 116.2790698

Sheet Traktor og redskab
B2: Kalkulatus 2023 | F2: Maskinkalkulation
B3: Maskintype | C3: F.eks. Udkører
B5: Pris | C5: 1000000 | D5: kr | E5: Omkostninger - udnyttelse
B6: Periode | C6: 8 | D6: år | E6: 100 | F6: (interval i skema)
B7: Kalkulationsrente | C7: 4 | D7: % | E7: timer/ | F7: kr/ | G7: kr/ | I7: kr/ | J7: kr/eff.time
B8: Værditab | C8: 15 | D8: %p.a | E8: år | F8: eff.time | G8: =+F17 -> m3 | H8: =+F17 -> m3 | I8: eff.time | J8: ex. Traktor
B9: Gns. Årligt værditab | C9: =+(C5-C10)/C6 -> 90938.68437 | D9: kr/år | F9: i alt | H9: i alt | I9: excl.diesel | J9: excl.løn
B10: Restværdi | C10: =((1-C8/100)^C6)*C5 -> 272490.525 | D10: kr | J10: excl.diesel
B11: Værditab+forrentn. | C11: =((1-(1-$C$8/100)^$C$6)*($C$7/(1-((1+$C$7/100)^(-$C$6))))+(100*(1-$C$8/100)^$C$6)*($C$7/100))*(C5/100) -> 118955.0261 | D11: kr/år | E11: 600 | F11: =($C$17/E11+$C$31)*(1+($I$19/100)) -> 1027.69938 | G11: =+F11/$H$17 -> 13.7026584 | H11: =+E11*$H$17 -> 45000 | I11: =($C$17/E11+($C$31-$C$28))*(1+($I$19/100)) -> 867.1993799 | J11: =($C$17/E11+($C$31-$C$23-$C$28-$C$25))*(1+($I$19/100)) -> 381.5531299
B12: Kapitalomkostninger | C12: =+C11/C5 -> 0.1189550261 | E12: =+$E$6+E11 -> 700 | F12: =($C$17/E12+$C$31)*(1+($I$19/100)) -> 988.4775042 | G12: =+F12/$H$17 -> 13.17970006 | H12: =+E12*$H$17 -> 52500 | I12: =($C$17/E12+($C$31-$C$28))*(1+($I$19/100)) -> 827.9775042 | J12: =($C$17/E12+($C$31-$C$23-$C$28-$C$25))*(1+($I$19/100)) -> 342.3312542
B13: Husleje | C13: 0 | D13: kr/år | E13: =+$E$6+E12 -> 800 | F13: =($C$17/E13+$C$31)*(1+($I$19/100)) -> 959.0610974 | G13: =+F13/$H$17 -> 12.7874813 | H13: =+E13*$H$17 -> 60000 | I13: =($C$17/E13+($C$31-$C$28))*(1+($I$19/100)) -> 798.5610974 | J13: =($C$17/E13+($C$31-$C$23-$C$28-$C$25))*(1+($I$19/100)) -> 312.9148474
B14: Forsikring | C14: 35000 | D14: kr/år | E14: =+$E$6+E13 -> 900 | F14: =($C$17/E14+$C$31)*(1+($I$19/100)) -> 936.1816699 | G14: =+F14/$H$17 -> 12.48242227 | H14: =+E14*$H$17 -> 67500 | I14: =($C$17/E14+($C$31-$C$28))*(1+($I$19/100)) -> 775.6816699 | J14: =($C$17/E14+($C$31-$C$23-$C$28-$C$25))*(1+($I$19/100)) -> 290.0354199
B15: Vægtafgift | D15: kr/år | E15: =+$E$6+E14 -> 1000 | F15: =($C$17/E15+$C$31)*(1+($I$19/100)) -> 917.8781279 | G15: =+F15/$H$17 -> 12.23837504 | H15: =+E15*$H$17 -> 75000 | I15: =($C$17/E15+($C$31-$C$28))*(1+($I$19/100)) -> 757.3781279 | J15: =($C$17/E15+($C$31-$C$23-$C$28-$C$25))*(1+($I$19/100)) -> 271.7318779
B17: Faste omkostninger | C17: =$C$11+C13+C14+$C$15 -> 153955.0261 | D17: kr/år | E17: enhed | F17: m3 | G17: kapacitet | H17: 75 | I17: enhed/time
B19: Løn til medarbejder | C19: 170 | D19: kr/time | E19: Administration | I19: 7 | J19: % | CI19: =CI21*$G$22 -> 600000 | CJ19: =CJ21*$G$22 -> 700000 | CK19: =CK21*$G$22 -> 800000 | CL19: =CL21*$G$22 -> 900000 | CM19: =CM21*$G$22 -> 1000000
B20: Sociale omk | C20: 43 | D20: % | E20: 0 - punktsberegning
B21: Lønomkostning | C21: =+C19*(1+C20/100) -> 243.1 | D21: kr/time | F21: kr/time | G21: VÆLG salgspris | I21: kr/enhed | J21: VÆLG salgspris | CI21: =E11 -> 600 | CJ21: =E12 -> 700 | CK21: =E13 -> 800 | CL21: =E14 -> 900 | CM21: =E15 -> 1000
B22: Effektivitet | C22: 80 | D22: % | E22: Kostpris | F22: =+F13 -> 959.0610974 | G22: 1000 | H22: Kostpris | I22: =+G13 -> 12.7874813 | J22: =G22/H17 -> 13.33333333 | CH22: Gns. fortjeneste pr. år | CI22: =CI19-SUM(CI23:CI29) -> -16619.62794 | CJ22: =CJ19-SUM(CJ23:CJ29) -> 8065.747061 | CK22: =CK19-SUM(CK23:CK29) -> 32751.12206 | CL22: =CL19-SUM(CL23:CL29) -> 57436.49706 | CM22: =CM19-SUM(CM23:CM29) -> 82121.87206
B23: Lønomkostning | C23: =+C21/(C22/100) -> 303.875 | D23: kr/eff.time | E23: Antal | F23: =+C17/((F22/(I19/100+1))-C31) -> 800 | G23: =+C17/((G22/(I19/100+1))-C31) -> 667.325807 | H23: Antal | I23: =+C17/(((+I22*H17)/(I19/100+1))-C31)*H17 -> 60000 | J23: =+C17/(((+J22*H17)/(I19/100+1))-C31)*H17 -> 50049.43553 | CG23: =C11 -> 118955.0261 | CH23: Værditab+forrentn. | CI23: =CG23 -> 118955.0261 | CJ23: =CG23 -> 118955.0261 | CK23: =CG23 -> 118955.0261 | CL23: =CG23 -> 118955.0261 | CM23: =CG23 -> 118955.0261
B24: Rep/vedligeh. | C24: 100 | D24: kr/eff.time | E24: Driftsresultat fra timepris | H24: Driftsresultat fra enhedspris | CG24: =C15+C14+C13 -> 35000 | CH24: Øvrige faste omk. | CI24: =CG24 -> 35000 | CJ24: =CG24 -> 35000 | CK24: =CG24 -> 35000 | CL24: =CG24 -> 35000 | CM24: =CG24 -> 35000
B25: Traktoromkostninger | C25: 150 | D25: kr/eff.time | E25: timer | F25: i alt | G25: kr i alt | H25: enheder | I25: kr/i alt | J25: kr i alt | CG25: =C23 -> 303.875 | CH25: Lønomkostning | CI25: =$CG$25*CI21 -> 182325 | CJ25: =$CG$25*CJ21 -> 212712.5 | CK25: =$CG$25*CK21 -> 243100 | CL25: =$CG$25*CL21 -> 273487.5 | CM25: =$CG$25*CM21 -> 303875
B26: Brændstofforbrug | C26: 30 | D26: liter/time | E26: =+E11 -> 600 | F26: =+(($F$22*E26))-$C$17-($C$31*E26) -> -843.3676569 | G26: =+(($G$22*E26))-$C$17-($C$31*E26) -> 23719.97389 | H26: =+E26*$H$17 -> 45000 | I26: =+(($I$22*H26))-$C$17-((H26/$H$17)*$C$31) -> -843.3676569 | J26: =+(($J$22*H26))-$C$17-((H26/$H$17)*$C$31) -> 23719.97389 | CG26: =C24 -> 100 | CH26: Rep/vedligeh. | CI26: =$CG$26*CI21 -> 60000 | CJ26: =$CG$26*CJ21 -> 70000 | CK26: =$CG$26*CK21 -> 80000 | CL26: =$CG$26*CL21 -> 90000 | CM26: =$CG$26*CM21 -> 100000
B27: Brændstofpris | C27: 5 | D27: kr/liter | E27: =+E12 -> 700 | F27: =+(($F$22*E27))-$C$17-($C$31*E27) -> 24675.24209 | G27: =+(($G$22*E27))-$C$17-($C$31*E27) -> 53332.47389 | H27: =+E27*$H$17 -> 52500 | I27: =+(($I$22*H27))-$C$17-((H27/$H$17)*$C$31) -> 24675.24209 | J27: =+(($J$22*H27))-$C$17-((H27/$H$17)*$C$31) -> 53332.47389 | CG27: =C28 -> 150 | CH27: =B41 -> Brændstof | CI27: =$CG$27*CI21 -> 90000 | CJ27: =$CG$27*CJ21 -> 105000 | CK27: =$CG$27*CK21 -> 120000 | CL27: =$CG$27*CL21 -> 135000 | CM27: =$CG$27*CM21 -> 150000
B28: Brændstof | C28: =+C26*C27 -> 150 | D28: kr/eff.time | E28: =+E13 -> 800 | F28: =+(($F$22*E28))-$C$17-($C$31*E28) -> 50193.85183 | G28: =+(($G$22*E28))-$C$17-($C$31*E28) -> 82944.97389 | H28: =+E28*$H$17 -> 60000 | I28: =+(($I$22*H28))-$C$17-((H28/$H$17)*$C$31) -> 50193.85183 | J28: =+(($J$22*H28))-$C$17-((H28/$H$17)*$C$31) -> 82944.97389 | CG28: =C25 -> 150 | CH28: Traktoromk. | CI28: =$CG$28*CI21 -> 90000 | CJ28: =$CG$28*CJ21 -> 105000 | CK28: =$CG$28*CK21 -> 120000 | CL28: =$CG$28*CL21 -> 135000 | CM28: =$CG$28*CM21 -> 150000
B29: Traktor i alt | C29: =IF(C25=0,0,C25+C28) -> 300 | D29: kr/eff.time | E29: =+E14 -> 900 | F29: =+(($F$22*E29))-$C$17-($C$31*E29) -> 75712.46157 | G29: =+(($G$22*E29))-$C$17-($C$31*E29) -> 112557.4739 | H29: =+E29*$H$17 -> 67500 | I29: =+(($I$22*H29))-$C$17-((H29/$H$17)*$C$31) -> 75712.46157 | J29: =+(($J$22*H29))-$C$17-((H29/$H$17)*$C$31) -> 112557.4739 | CG29: =C28 -> 150 | CH29: Administrationsomkostning | CI29: =(CI28+CI27+CI26+CI25+CI24+CI23)*$I$19/100 -> 40339.60183 | CJ29: =(CJ28+CJ27+CJ26+CJ25+CJ24+CJ23)*$I$19/100 -> 45266.72683 | CK29: =(CK28+CK27+CK26+CK25+CK24+CK23)*$I$19/100 -> 50193.85183 | CL29: =(CL28+CL27+CL26+CL25+CL24+CL23)*$I$19/100 -> 55120.97683 | CM29: =(CM28+CM27+CM26+CM25+CM24+CM23)*$I$19/100 -> 60048.10183
B30: Vareforbrug | C30: 0 | D30: kr/eff.time | E30: =+E15 -> 1000 | F30: =+(($F$22*E30))-$C$17-($C$31*E30) -> 101231.0713 | G30: =+(($G$22*E30))-$C$17-($C$31*E30) -> 142169.9739 | H30: =+E30*$H$17 -> 75000 | I30: =+(($I$22*H30))-$C$17-((H30/$H$17)*$C$31) -> 101231.0713 | J30: =+(($J$22*H30))-$C$17-((H30/$H$17)*$C$31) -> 142169.9739
B31: Driftsomk.ialt | C31: =$C$24+$C$23+$C$25+C28+C30 -> 703.875 | D31: kr/eff.time
B32: Driftsomk. Ex løn | C32: =+C31-C23 -> 400 | D32: kr/eff.time | F32: 0-punktsberegning | J32: tm2023
G33: Kommentar
B34: Driftsøkonomi på årsbasis. | C34: Totaler | D34: kr./time | E34: kr./enhed | F34: %
B35: Omsætning | C35: =G22*E13 -> 800000 | D35: =C35/$E$13 -> 1000 | E35: =D35/$H$17 -> 13.33333333 | F35: =C35/$C$35*100 -> 100
B36: Forrentning+afskrivning | C36: =C11 -> 118955.0261 | D36: 148.6937826 | E36: 1.982583769 | F36: 14.86937826
B37: Forsikring/vægtafgift/oa. | C37: =C15+C14+C13 -> 35000 | D37: 43.75 | E37: 0.5833333333 | F37: 4.375
B38: Løn | C38: =C23*E13 -> 243100 | D38: 303.875 | E38: 4.051666667 | F38: 30.3875 | CG38: År | CH38: Husleje+forsikring+vægtafgift | CI38: Rep./vedligehold | CJ38: Arbejdsløn | CK38: Traktoromkostning | CL38: Brændstof | CM38: Vareforbrug | CN38: Afskriv/forrent | CO38: Administration | CP38: Gns. kostpris for perioden | CQ38: Gns. salgspris for perioden | CT38: kostpris | CU38: primoværdi | CV38: afskriv | CW38: Forrentning | CX38: Faste omk pr. time
B39: Rep/vedligeholdelse | C39: =C24*E13 -> 80000 | D39: 100 | E39: 1.333333333 | F39: 10 | CG39: 1 | CH39: =IF(CG39="","",($C$13+$C$14+$C$15)/$E$13) -> 43.75 | CI39: =IF(CG39="","",$C$24) -> 100 | CJ39: =IF(CG39="","",$C$23) -> 303.875 | CK39: =IF(CG39="","",$C$25) -> 150 | CL39: =IF(CG39="","",$C$28) -> 150 | CM39: =IF(CG39="","",$C$30) -> 0 | CN39: =IF(CG39="","",CX39) -> 237.5 | CO39: =IF(CG39="","",SUM(CH39:CN39)*$I$19/100) -> 68.95875 | CP39: =IF(CG39="","",$F$22) -> 959.0610974 | CQ39: =IF(CG39="","",$G$22) -> 1000 | CT39: =SUM(CH39:CO39) -> 1054.08375 | CU39: =$C$5*(100-$C$8)/100 -> 850000 | CV39: =C5-CU39 -> 150000 | CW39: =C5*(($C$7/100)) -> 40000 | CX39: =(CW39+CV39)/$E$13 -> 237.5
B40: Traktor | C40: =C25*E13 -> 120000 | D40: 150 | E40: 2 | F40: 15 | CG40: =IF(OR(CG39>=$C$6,CG39=""),"",+CG39+1) -> 2 | CH40: 43.75 | CI40: 100 | CJ40: 303.875 | CK40: 150 | CL40: 150 | CM40: 0 | CN40: 201.875 | CO40: 66.465 | CP40: 959.0610974 | CQ40: 1000 | CT40: 1015.965 | CU40: =CU39*(100-$C$8)/100 -> 722500 | CV40: =CU39-CU40 -> 127500 | CW40: =CU39*(($C$7/100)) -> 34000 | CX40: 201.875 | CY40: =CX39/CX40*100 -> 117.6470588
B41: Brændstof | C41: =C28*E13 -> 120000 | D41: 150 | E41: 2 | F41: 15 | CG41: 3 | CH41: 43.75 | CI41: 100 | CJ41: 303.875 | CK41: 150 | CL41: 150 | CM41: 0 | CN41: 171.59375 | CO41: 64.3453125 | CP41: 959.0610974 | CQ41: 1000 | CT41: 983.5640625 | CU41: 614125 | CV41: 108375 | CW41: 28900 | CX41: 171.59375 | CY41: 117.6470588
B42: Vareforbrug | C42: =C30*E13 -> 0 | D42: 0 | E42: 0 | F42: 0 | CG42: 4 | CH42: 43.75 | CI42: 100 | CJ42: 303.875 | CK42: 150 | CL42: 150 | CM42: 0 | CN42: 145.8546875 | CO42: 62.54357812 | CP42: 959.0610974 | CQ42: 1000 | CT42: 956.0232656 | CU42: 522006.25 | CV42: 92118.75 | CW42: 24565 | CX42: 145.8546875 | CY42: 117.6470588
B43: Administrationsomk. | C43: =F28 -> 50193.85183 | D43: 62.74231478 | E43: 0.8365641971 | F43: 6.274231478 | G43: Adm. omk. tillægges med procentdel. | CG43: 5 | CH43: 43.75 | CI43: 100 | CJ43: 303.875 | CK43: 150 | CL43: 150 | CM43: 0 | CN43: 123.9764844 | CO43: 61.01210391 | CP43: 959.0610974 | CQ43: 1000 | CT43: 932.6135883 | CU43: 443705.3125 | CV43: 78300.9375 | CW43: 20880.25 | CX43: 123.9764844 | CY43: 117.6470588
B44: Gns. Fortjeneste | C44: =C35-SUM(C36:C43) -> 32751.12206 | D44: =D35-SUM(D36:D43) -> 40.93890258 | E44: 0.5458520344 | F44: 4.093890258 | CG44: 6 | CH44: 43.75 | CI44: 100 | CJ44: 303.875 | CK44: 150 | CL44: 150 | CM44: 0 | CN44: 105.3800117 | CO44: 59.71035082 | CP44: 959.0610974 | CQ44: 1000 | CT44: 912.7153625 | CU44: 377149.5156 | CV44: 66555.79688 | CW44: 17748.2125 | CX44: 105.3800117 | CY44: 117.6470588
CG45: 7 | CH45: 43.75 | CI45: 100 | CJ45: 303.875 | CK45: 150 | CL45: 150 | CM45: 0 | CN45: 89.57300996 | CO45: 58.6038607 | CP45: 959.0610974 | CQ45: 1000 | CT45: 895.8018707 | CU45: 320577.0883 | CV45: 56572.42734 | CW45: 15085.98063 | CX45: 89.57300996 | CY45: 117.6470588
CG46: 8 | CH46: 43.75 | CI46: 100 | CJ46: 303.875 | CK46: 150 | CL46: 150 | CM46: 0 | CN46: 76.13705847 | CO46: 57.66334409 | CP46: 959.0610974 | CQ46: 1000 | CT46: 881.4254026 | CU46: 272490.525 | CV46: 48086.56324 | CW46: 12823.08353 | CX46: 76.13705847 | CY46: 117.6470588
CT47: 0 | CU47: 231616.9463 | CV47: 40873.57876 | CW47: 10899.621 | CX47: 64.7164997 | CY47: 117.6470588
CT48: 0 | CU48: 196874.4043 | CV48: 34742.54194 | CW48: 9264.677851 | CX48: 55.00902474 | CY48: 117.6470588
CT49: 0 | CU49: 167343.2437 | CV49: 29531.16065 | CW49: 7874.976174 | CX49: 46.75767103 | CY49: 117.6470588
CT50: 0 | CU50: 142241.7571 | CV50: 25101.48655 | CW50: 6693.729748 | CX50: 39.74402038 | CY50: 117.6470588
CT51: 0 | CU51: 120905.4936 | CV51: 21336.26357 | CW51: 5689.670285 | CX51: 33.78241732 | CY51: 117.6470588
K68: =IF(B68="","",$G$22) -> 
K69: =IF(B69="","",$G$22) -> 

Sheet Selvkørende
B2: Kalkulatus 2023 | F2: Maskinkalkulation
B3: Maskintype | C3: Selvkørende maskine
B5: Pris | C5: 2000000 | D5: kr | E5: Omkostninger - udnyttelse
B6: Periode | C6: 8 | D6: år | E6: 50 | F6: (interval i skema)
B7: Kalkulationsrente | C7: 4 | D7: % | E7: timer/ | F7: kr/ | G7: kr/ | I7: kr/ | J7: kr/eff.time
B8: Værditab | C8: 14 | D8: %p.a | E8: år | F8: eff.time | G8: =+F17 -> m3 | H8: =+F17 -> m3 | I8: eff.time | J8: ex. Traktor
B9: Gns. Årligt værditab | C9: =+(C5-C10)/C6 -> 175195.5182 | D9: kr/år | F9: i alt | H9: i alt | I9: excl.diesel | J9: excl.løn
B10: Restværdi | C10: =((1-C8/100)^C6)*C5 -> 598435.8542 | D10: kr | J10: excl.diesel
B11: Værditab+forrentn. | C11: =((1-(1-$C$8/100)^$C$6)*($C$7/(1-((1+$C$7/100)^(-$C$6))))+(100*(1-$C$8/100)^$C$6)*($C$7/100))*(C5/100) -> 232108.7182 | D11: kr/år | E11: 300 | F11: =($C$17/E11+$C$29)*(1+($I$19/100)) -> 1735.927762 | G11: =+F11/$H$17 -> 57.86425872 | H11: =+E11*$H$17 -> 9000 | I11: =($C$17/E11+($C$29-$C$27))*(1+($I$19/100)) -> 1564.727762 | J11: =($C$17/E11+($C$29-$C$23-$C$27))*(1+($I$19/100)) -> 1091.787762
B12: Kapitalomkostninger | C12: =+C11/C5 -> 0.1160543591 | E12: =+$E$6+E11 -> 350 | F12: =($C$17/E12+$C$29)*(1+($I$19/100)) -> 1610.52951 | G12: =+F12/$H$17 -> 53.684317 | H12: =+E12*$H$17 -> 10500 | I12: =($C$17/E12+($C$29-$C$27))*(1+($I$19/100)) -> 1439.32951 | J12: =($C$17/E12+($C$29-$C$23-$C$27))*(1+($I$19/100)) -> 966.38951
B13: Husleje | C13: 4000 | D13: kr/år | E13: =+$E$6+E12 -> 400 | F13: =($C$17/E13+$C$29)*(1+($I$19/100)) -> 1516.480821 | G13: =+F13/$H$17 -> 50.54936071 | H13: =+E13*$H$17 -> 12000 | I13: =($C$17/E13+($C$29-$C$27))*(1+($I$19/100)) -> 1345.280821 | J13: =($C$17/E13+($C$29-$C$23-$C$27))*(1+($I$19/100)) -> 872.3408212
B14: Forsikring | C14: 10000 | D14: kr/år | E14: =+$E$6+E13 -> 450 | F14: =($C$17/E14+$C$29)*(1+($I$19/100)) -> 1443.331841 | G14: =+F14/$H$17 -> 48.11106137 | H14: =+E14*$H$17 -> 13500 | I14: =($C$17/E14+($C$29-$C$27))*(1+($I$19/100)) -> 1272.131841 | J14: =($C$17/E14+($C$29-$C$23-$C$27))*(1+($I$19/100)) -> 799.1918411
B15: Vægtafgift | D15: kr/år | E15: =+$E$6+E14 -> 500 | F15: =($C$17/E15+$C$29)*(1+($I$19/100)) -> 1384.812657 | G15: =+F15/$H$17 -> 46.1604219 | H15: =+E15*$H$17 -> 15000 | I15: =($C$17/E15+($C$29-$C$27))*(1+($I$19/100)) -> 1213.612657 | J15: =($C$17/E15+($C$29-$C$23-$C$27))*(1+($I$19/100)) -> 740.672657
B17: Faste omkostninger | C17: =$C$11+C13+C14+$C$15 -> 246108.7182 | D17: kr/år | E17: enhed | F17: m3 | G17: kapacitet | H17: 30 | I17: enhed/time
B19: Løn til medarbejder | C19: 170 | D19: kr/time | E19: Administration | I19: 7 | J19: % | DP19: omsætning | DQ19: =DQ21*$G$22 -> 510000 | DR19: =DR21*$G$22 -> 595000 | DS19: =DS21*$G$22 -> 680000 | DT19: =DT21*$G$22 -> 765000 | DU19: =DU21*$G$22 -> 850000
B20: Sociale omk | C20: 43 | D20: % | E20: 0 - punktsberegning
B21: Lønomkostning | C21: =+C19*(1+C20/100) -> 243.1 | D21: kr/time | F21: kr/time | G21: VÆLG salgspris | I21: kr/enhed | J21: VÆLG salgspris | DQ21: =E11 -> 300 | DR21: =E12 -> 350 | DS21: =E13 -> 400 | DT21: =E14 -> 450 | DU21: =E15 -> 500 | DX21: Under 100 hk | DY21: 100-150 | DZ21: 150-200 | EA21: 200-250 | EB21: 250-300 | EC21: 300-350 | ED21: Over 350 hk
B22: Effektivitet | C22: 55 | D22: % | E22: Kostpris | F22: =+F13 -> 1516.480821 | G22: 1700 | H22: Kostpris | I22: =+G13 -> 50.54936071 | J22: =G22/H17 -> 56.66666667 | DP22: Gns. Fortjeneste pr. år | DQ22: =DQ19-SUM(DQ23:DQ29) -> -10778.32849 | DR22: =DR19-SUM(DR23:DR29) -> 31314.67151 | DS22: =DS19-SUM(DS23:DS29) -> 73407.67151 | DT22: =DT19-SUM(DT23:DT29) -> 115500.6715 | DU22: =DU19-SUM(DU23:DU29) -> 157593.6715 | DW22: Brændstof | DX22: 31 | DY22: 51 | DZ22: 72 | EA22: 90 | EB22: 113 | EC22: 131 | ED22: 149
B23: Lønomkostning | C23: =+C21/(C22/100) -> 442 | D23: kr/eff.time | E23: Antal | F23: =+C17/((F22/(I19/100+1))-C29) -> 400 | G23: =+C17/((G22/(I19/100+1))-C29) -> 312.802994 | H23: Antal | I23: =+C17/(((+I22*H17)/(I19/100+1))-C29)*H17 -> 12000 | J23: =+C17/(((+J22*H17)/(I19/100+1))-C29)*H17 -> 9384.089819 | DO23: =C11 -> 232108.7182 | DP23: Værditab+forrentn. | DQ23: =DO23 -> 232108.7182 | DR23: =DO23 -> 232108.7182 | DS23: =DO23 -> 232108.7182 | DT23: =DO23 -> 232108.7182 | DU23: =DO23 -> 232108.7182 | DW23: Løn | DX23: 15 | DY23: 12 | DZ23: 10 | EA23: 11 | EB23: 9 | EC23: 9 | ED23: 9
B24: Rep/vedligeh. | C24: 200 | D24: kr/eff.time | E24: Driftsresultat fra timepris | H24: Driftsresultat fra enhedspris | DO24: =C15+C14+C13 -> 14000 | DP24: Øvrige faste omk. | DQ24: =DO24 -> 14000 | DR24: =DO24 -> 14000 | DS24: =DO24 -> 14000 | DT24: =DO24 -> 14000 | DU24: =DO24 -> 14000 | DW24: Rep/vedl | DX24: 57 | DY24: 35 | DZ24: 43 | EA24: 40 | EB24: 33 | EC24: 41 | ED24: 35
B25: Brændstofforbrug | C25: 40 | D25: liter/time | E25: timer | F25: i alt | G25: kr i alt | H25: enheder | I25: kr/i alt | J25: kr i alt | DO25: =C23 -> 442 | DP25: Lønomkostning | DQ25: =$DO$25*DQ21 -> 132600 | DR25: =$DO$25*DR21 -> 154700 | DS25: =$DO$25*DS21 -> 176800 | DT25: =$DO$25*DT21 -> 198900 | DU25: =$DO$25*DU21 -> 221000 | DW25: Afskriv/forrentning | DX25: 28 | DY25: 59 | DZ25: 72 | EA25: 107 | EB25: 121 | EC25: 124 | ED25: 155
B26: Brændstofpris | C26: 4 | D26: kr/liter | E26: =+E11 -> 300 | F26: =+(($F$22*E26))-$C$17-($C$29*E26) -> -31764.47185 | G26: =+(($G$22*E26))-$C$17-($C$29*E26) -> 23291.28178 | H26: =+E26*$H$17 -> 9000 | I26: =+(($I$22*H26))-$C$17-((H26/$H$17)*$C$29) -> -31764.47185 | J26: =+(($J$22*H26))-$C$17-((H26/$H$17)*$C$29) -> 23291.28178 | DO26: =C24 -> 200 | DP26: Rep/vedligeh. | DQ26: =$DO$26*DQ21 -> 60000 | DR26: =$DO$26*DR21 -> 70000 | DS26: =$DO$26*DS21 -> 80000 | DT26: =$DO$26*DT21 -> 90000 | DU26: =$DO$26*DU21 -> 100000 | DX26: Under 100 hk | DY26: 100-150 | DZ26: 150-200 | EA26: 200-250 | EB26: 250-300 | EC26: 300-350 | ED26: Over 350 hk
B27: Brændstof | C27: =+C25*C26 -> 160 | D27: kr/eff.time | E27: =+E12 -> 350 | F27: =+(($F$22*E27))-$C$17-($C$29*E27) -> 3959.569214 | G27: =+(($G$22*E27))-$C$17-($C$29*E27) -> 68191.28178 | H27: =+E27*$H$17 -> 10500 | I27: =+(($I$22*H27))-$C$17-((H27/$H$17)*$C$29) -> 3959.569214 | J27: =+(($J$22*H27))-$C$17-((H27/$H$17)*$C$29) -> 68191.28178 | DO27: =C27 -> 160 | DP27: =B38 -> Brændstof | DQ27: =$DO$27*DQ21 -> 48000 | DR27: =$DO$27*DR21 -> 56000 | DS27: =$DO$27*DS21 -> 64000 | DT27: =$DO$27*DT21 -> 72000 | DU27: =$DO$27*DU21 -> 80000 | DW27: Timer | DX27: 303 | DY27: 361 | DZ27: 572 | EA27: 659 | EB27: 659 | EC27: 826 | ED27: 1024
B28: Vareforbrug | C28: 0 | D28: kr/eff.time | E28: =+E13 -> 400 | F28: =+(($F$22*E28))-$C$17-($C$29*E28) -> 39683.61028 | G28: =+(($G$22*E28))-$C$17-($C$29*E28) -> 113091.2818 | H28: =+E28*$H$17 -> 12000 | I28: =+(($I$22*H28))-$C$17-((H28/$H$17)*$C$29) -> 39683.61028 | J28: =+(($J$22*H28))-$C$17-((H28/$H$17)*$C$29) -> 113091.2818 | DO28: =C28 -> 0 | DP28: Vareforbrug | DQ28: =$DO$28*DQ21 -> 0 | DR28: =$DO$28*DR21 -> 0 | DS28: =$DO$28*DS21 -> 0 | DT28: =$DO$28*DT21 -> 0 | DU28: =$DO$28*DU21 -> 0
B29: Driftsomk.ialt | C29: =$C$24+$C$23+C27+C28 -> 802 | D29: kr/eff.time | E29: =+E14 -> 450 | F29: =+(($F$22*E29))-$C$17-($C$29*E29) -> 75407.65134 | G29: =+(($G$22*E29))-$C$17-($C$29*E29) -> 157991.2818 | H29: =+E29*$H$17 -> 13500 | I29: =+(($I$22*H29))-$C$17-((H29/$H$17)*$C$29) -> 75407.65134 | J29: =+(($J$22*H29))-$C$17-((H29/$H$17)*$C$29) -> 157991.2818 | DO29: =C27 -> 160 | DP29: Administrationsomkostning | DQ29: =(DQ27+DQ26+DQ25+DQ24+DQ23)*$I$19/100 -> 34069.61028 | DR29: =(DR27+DR26+DR25+DR24+DR23)*$I$19/100 -> 36876.61028 | DS29: =(DS27+DS26+DS25+DS24+DS23)*$I$19/100 -> 39683.61028 | DT29: =(DT27+DT26+DT25+DT24+DT23)*$I$19/100 -> 42490.61028 | DU29: =(DU27+DU26+DU25+DU24+DU23)*$I$19/100 -> 45297.61028
B30: Driftsomk. Ex løn | C30: =+C29-C23 -> 360 | D30: kr/eff.time | E30: =+E15 -> 500 | F30: =+(($F$22*E30))-$C$17-($C$29*E30) -> 111131.6924 | G30: =+(($G$22*E30))-$C$17-($C$29*E30) -> 202891.2818 | H30: =+E30*$H$17 -> 15000 | I30: =+(($I$22*H30))-$C$17-((H30/$H$17)*$C$29) -> 111131.6924 | J30: =+(($J$22*H30))-$C$17-((H30/$H$17)*$C$29) -> 202891.2818 | DQ30: =DQ22/DQ19*100 -> -2.113397743 | DR30: =DR22/DR19*100 -> 5.262970001 | DS30: =DS22/DS19*100 -> 10.79524581 | DT30: =DT22/DT19*100 -> 15.09812699 | DU30: =DU22/DU19*100 -> 18.54043194
J31: tm2023
B32: Driftsøkonomi på årsbasis. | C32: Totaler | D32: kr./time | E32: kr./enhed | F32: % | G32: Kommentar
B33: Omsætning | C33: =G22*E13 -> 680000 | D33: =C33/$E$13 -> 1700 | E33: =D33/$H$17 -> 56.66666667 | F33: =C33/$C$33*100 -> 100
B34: Forrentning+afskrivning | C34: =C11 -> 232108.7182 | D34: 580.2717955 | E34: 19.34239318 | F34: 34.13363503
B35: Forsikring/vægtafgift/oa. | C35: =C15+C14+C13 -> 14000 | D35: 35 | E35: 1.166666667 | F35: 2.058823529
B36: Løn | C36: =C23*E13 -> 176800 | D36: 442 | E36: 14.73333333 | F36: 26
B37: Rep/vedligeholdelse | C37: =C24*E13 -> 80000 | D37: 200 | E37: 6.666666667 | F37: 11.76470588
B38: Brændstof | C38: =C27*E13 -> 64000 | D38: 160 | E38: 5.333333333 | F38: 9.411764706 | DO38: År | DP38: Husleje+forsikring+vægtafgift | DQ38: Rep./vedligehold | DR38: Arbejdsløn | DS38: Kolonne1 | DT38: Brændstof | DU38: Vareforbrug | DV38: Afskriv/forrent | DW38: Administration | DX38: Gns. kostpris for perioden | DY38: Gns. salgspris for perioden | EB38: kostpris | EC38: primoværdi | ED38: afskriv | EE38: Forrentning | EF38: Faste omk pr. time
B39: Vareforbrug | C39: =C28*E13 -> 0 | D39: 0 | E39: 0 | F39: 0 | DO39: 1 | DP39: =IF(DO39="","",($C$13+$C$14+$C$15)/$E$13) -> 35 | DQ39: =IF(DO39="","",$C$24) -> 200 | DR39: =IF(DO39="","",$C$23) -> 442 | DT39: =IF(DO39="","",$C$27) -> 160 | DU39: =IF(DO39="","",$C$28) -> 0 | DV39: =IF(DO39="","",EF39) -> 900 | DW39: =IF(DO39="","",SUM(DP39:DV39)*$I$19/100) -> 121.59 | DX39: =IF(DO39="","",$F$22) -> 1516.480821 | DY39: =IF(DO39="","",$G$22) -> 1700 | EB39: =SUM(DP39:DW39) -> 1858.59 | EC39: =$C$5*(100-$C$8)/100 -> 1720000 | ED39: =C5-EC39 -> 280000 | EE39: =C5*(($C$7/100)) -> 80000 | EF39: =(EE39+ED39)/$E$13 -> 900
B40: Administrationsomk. | C40: =F28 -> 39683.61028 | D40: 99.20902569 | E40: 3.306967523 | F40: 5.83582504 | G40: Adm. omk. tillægges med procentdel. | DO40: =IF(OR(DO39>=$C$6,DO39=""),"",+DO39+1) -> 2 | DP40: 35 | DQ40: 200 | DR40: 442 | DT40: 160 | DU40: 0 | DV40: 774 | DW40: 112.77 | DX40: 1516.480821 | DY40: 1700 | EB40: 1723.77 | EC40: =EC39*(100-$C$8)/100 -> 1479200 | ED40: =EC39-EC40 -> 240800 | EE40: =EC39*(($C$7/100)) -> 68800 | EF40: 774 | EG40: =EF39/EF40*100 -> 116.2790698
B41: Gns. Fortjeneste | C41: =C33-SUM(C34:C40) -> 73407.67151 | D41: =D33-SUM(D34:D40) -> 183.5191788 | E41: 6.117305959 | F41: 10.79524581 | DO41: =IF(OR(DO40>=$C$6,DO40=""),"",+DO40+1) -> 3 | DP41: 35 | DQ41: 200 | DR41: 442 | DT41: 160 | DU41: 0 | DV41: 665.64 | DW41: 105.1848 | DX41: 1516.480821 | DY41: 1700 | EB41: 1607.8248 | EC41: =EC40*(100-$C$8)/100 -> 1272112 | ED41: =EC40-EC41 -> 207088 | EE41: =EC40*(($C$7/100)) -> 59168 | EF41: 665.64 | EG41: =EF40/EF41*100 -> 116.2790698
DO42: 4 | DP42: 35 | DQ42: 200 | DR42: 442 | DT42: 160 | DU42: 0 | DV42: 572.4504 | DW42: 98.661528 | DX42: 1516.480821 | DY42: 1700 | EB42: 1508.111928 | EC42: 1094016.32 | ED42: 178095.68 | EE42: 50884.48 | EF42: 572.4504 | EG42: 116.2790698
DO43: 5 | DP43: 35 | DQ43: 200 | DR43: 442 | DT43: 160 | DU43: 0 | DV43: 492.307344 | DW43: 93.05151408 | DX43: 1516.480821 | DY43: 1700 | EB43: 1422.358858 | EC43: 940854.0352 | ED43: 153162.2848 | EE43: 43760.6528 | EF43: 492.307344 | EG43: 116.2790698
DO44: 6 | DP44: 35 | DQ44: 200 | DR44: 442 | DT44: 160 | DU44: 0 | DV44: 423.3843158 | DW44: 88.22690211 | DX44: 1516.480821 | DY44: 1700 | EB44: 1348.611218 | EC44: 809134.4703 | ED44: 131719.5649 | EE44: 37634.16141 | EF44: 423.3843158 | EG44: 116.2790698
DO45: 7 | DP45: 35 | DQ45: 200 | DR45: 442 | DT45: 160 | DU45: 0 | DV45: 364.1105116 | DW45: 84.07773581 | DX45: 1516.480821 | DY45: 1700 | EB45: 1285.188247 | EC45: 695855.6444 | ED45: 113278.8258 | EE45: 32365.37881 | EF45: 364.1105116 | EG45: 116.2790698
DO46: 8 | DP46: 35 | DQ46: 200 | DR46: 442 | DT46: 160 | DU46: 0 | DV46: 313.13504 | DW46: 80.5094528 | DX46: 1516.480821 | DY46: 1700 | EB46: 1230.644493 | EC46: 598435.8542 | ED46: 97419.79022 | EE46: 27834.22578 | EF46: 313.13504 | EG46: 116.2790698
EB47: 0 | EC47: 514654.8346 | ED47: 83781.01959 | EE47: 23937.43417 | EF47: 269.2961344 | EG47: 116.2790698
DO48: =IF(OR(DO47>=$C$6,DO47=""),"",+DO47+1) ->  | EB48: 0 | EC48: 442603.1578 | ED48: 72051.67685 | EE48: 20586.19338 | EF48: 231.5946756 | EG48: 116.2790698
DO49: =IF(OR(DO48>=$C$6,DO48=""),"",+DO48+1) ->  | EB49: 0 | EC49: 380638.7157 | ED49: 61964.44209 | EE49: 17704.12631 | EF49: 199.171421 | EG49: 116.2790698
EB50: 0 | EC50: 327349.2955 | ED50: 53289.4202 | EE50: 15225.54863 | EF50: 171.2874221 | EG50: 116.2790698
DS51: =IF(DO51="","",#REF!) ->  | DW51: =IF(DO51="","",SUM(DP51:DV51)*$I$19/100) ->  | EB51: 0 | EC51: 281520.3941 | ED51: 45828.90137 | EE51: 13093.97182 | EF51: 147.307183 | EG51: 116.2790698
K68: =IF(B65="","",$G$22) -> 
K69: =IF(B66="","",$G$22) -> 
